Cogmind - Beta 15 @@@ ROGUE MODE // 2025.10.08 @ 08:06:01 Player: microsand Result: Self-destructed Performance ------------- Evolutions (0) 0 Regions Visited (3) 600 Robots Destroyed (12) 60 Value Destroyed (163) 163 Prototype IDs (0) 0 Alien Tech Used (0) 0 Bonus (800) 800 TOTAL SCORE: 1623 Bonus ------- Registered with UFD 300 Met Optimus in HQ 500 Cogmind --------- Core Integrity 22/250 Matter 300/300 Energy 100/100 System Corruption 2% Temperature Cool (51) Movement Core (100) Ox1 Location -7/Scraptown Parts ------- > --- POWER (1) -------- (None) > --- PROPULSION (2) --- Overtuned Titanium Leg > --- UTILITY (2) ------ Small Storage Unit > --- WEAPON (2) ------- (None) > --- INVENTORY (8) ---- Light Treads Pulse Rifle EM Pulse Cannon Overtuned Barrage Gun Gauss Rifle DRS Beacon (Expended) DRS Beacon (Ready) Peak State ------------ > --- POWER ------------ Light Nuclear Core > --- PROPULSION ------- Overtuned Titanium Leg Improved Titanium Leg > --- UTILITY ---------- Small Storage Unit Sensor Array > --- WEAPON ----------- Flak Gun Coil Gun > --- INVENTORY -------- Light Treads Pulse Rifle EM Pulse Cannon Overtuned Barrage Gun Gauss Rifle DRS Beacon DRS Beacon [Rating: 23] Favorites ----------- Power Light Nuclear Core Engine Ion Engine Power Core Light Nuclear Core Propulsion Light Treads Treads Light Treads Leg Aluminum Leg Utility Small Storage Unit Device Sensor Array Storage Small Storage Unit Weapon Coil Gun Energy Gun Small Laser Ballistic Gun Coil Gun Special Weapon Mining Laser Build | -11 -10 -10 -7 ------- Run | Yrd Mat Sub Scr Slots Evolved . | . . . . Power . | . . . . Propulsion . | . . . . Utility . | . . . . Weapon . | . . . . Parts Attached 17 | 9 3 . 5 Power 2 | 1 . . 1 Engine 1 | 1 . . . Core 1 | . . . 1 Reactor . | . . . . Propulsion 6 | 4 . . 2 Treads 2 | 2 . . . Leg 4 | 2 . . 2 Wheel . | . . . . Hover . | . . . . Flight . | . . . . Utility 3 | 1 2 . . Device 2 | 1 1 . . Storage 1 | . 1 . . Processor . | . . . . Hackware . | . . . . Protection . | . . . . Artifact . | . . . . Weapon 6 | 3 1 . 2 Energy Gun 3 | 3 . . . Energy Cannon . | . . . . Ballistic Gun 2 | . . . 2 Ballistic Cannon . | . . . . Launcher . | . . . . Special Weapon 1 | . 1 . . Impact Weapon . | . . . . Slashing Weapon . | . . . . Piercing Weapon . | . . . . Special Melee Weapon . | . . . . Unidentified Prototypes . | . . . . Parts Lost 6 | . 1 . 5 Power 1 | . . . 1 Propulsion 1 | . . . 1 Utility 2 | . 1 . 1 Weapon 2 | . . . 2 Highest Loss Streak 5 | . 1 . 5 To Critical Strikes . | . . . . Average Backups 3 | 3 4 5 2 Power . | . . 1 . Propulsion 1 | 1 2 2 . Utility . | . . . . Weapon . | . 1 2 . Tool/Special . | . . . . Unused Backups 5 | . . . 5 Power . | . . . . Propulsion . | . . . . Utility 1 | . . . 1 Weapon 4 | . . . 4 Tool/Special . | . . . . Average Slot Usage (%) 95 | . 90 100 97 Engine 4 | . 14 14 . Core 9 | . . . 13 Treads 27 | . 28 28 27 Device 12 | . 7 14 13 Storage 13 | . 11 14 14 Energy Gun 8 | . 27 28 . Ballistic Gun 17 | . . . 25 Peak Build Rating 23 | 6 7 8 23 Average Rating 13 | 4 6 7 17 On Entrance 5 | . 6 7 8 Naked Turns . | . . . . Heaviest Build 20 | 9 14 14 20 Greatest Support 40 | 40 40 40 40 Greatest Overweight (x) . | . . . . Average Overweight (x) . | . . . . Largest Inventory Capacity 8 | 5 8 8 8 Average Capacity 7 | 5 7 8 8 Most Carried 8 | 5 6 8 8 Average Carried 5 | 3 4 6 5 Final Capacity 8 | 5 8 8 8 Final Carried 8 | 4 5 8 7 Class Distribution -------------------- 100% | Mutant Dominant Class ---------------- Mutant | -10/Materials Mutant | -10/Subcaves Mutant | -7/Scraptown Resources | -11 -10 -10 -7 ----------- Run | Yrd Mat Sub Scr Matter Collected 432 | 280 102 . 50 Remotely . | . . . . Salvage Created 388 | 196 192 . . Parts 26 | 13 13 . . Haulers Intercepted . | . . . . Recyclers Shooed . | . . . . Parts Field Recycled . | . . . . Retrieved Matter . | . . . . Parts Self-Destructed . | . . . . Prevented . | . . . . Kills | -11 -10 -10 -7 ------- Run | Yrd Mat Sub Scr Combat Hostiles Destroyed 3 | . 3 . . Guns 3 | . 3 . . Classes Destroyed 6 | 3 3 . . Worker 3 | 2 1 . . Builder 1 | . 1 . . Tunneler 3 | 3 . . . Recycler 1 | 1 . . . Watcher 1 | . 1 . . Grunt 3 | . 3 . . Best Kill Streak 2 | 2 2 . . Combat Bots Only 2 | . 2 . . Max Kills in Single Turn 1 | 1 1 . . Gunslinging . | . . . . Exploded . | . . . . Melee . | . . . . Uniques/NPCs Destroyed . | . . . . Combat | -11 -10 -10 -7 -------- Run | Yrd Mat Sub Scr Hostile Shots Fired 143 | . 49 . 94 Missed 53 | . 19 . 34 Hits 90 | . 30 . 60 Melee 1 | . . . 1 Projectile 89 | . 30 . 59 Critical Strikes 1 | . . . 1 Part Disruptions 1 | . . . 1 Damage Taken 1181 | . 319 . 862 Core 228 | . 33 . 195 Absorbed by Shields . | . . . . Core Remaining (%) 100 | 100 . . . Volleys Fired 44 | 18 25 . 1 Largest 2 | 2 2 . 1 Hottest 100 | 90 100 . 30 Shots Fired 84 | 36 47 . 1 Gun 81 | 36 44 . 1 Cannon . | . . . . Launcher . | . . . . Special 3 | . 3 . . Kinetic 1 | . . . 1 Thermal 83 | 36 47 . . Explosive . | . . . . Electromagnetic . | . . . . Robot Hit Streak 8 | 5 7 . 8 Robot Miss Streak 5 | 3 5 . . Penetration Max 1 | . . . 1 Secondary Targets . | . . . . Shots Hit Robots 48 | 22 25 . 1 Core Hits 16 | 7 8 . 1 Critical Kills . | . . . . Critical Parts Destroyed . | . . . . Critical Strikes 1 | 1 . . . Burn 1 | 1 . . . Melee Attacks . | . . . . Impact . | . . . . Slashing . | . . . . Piercing . | . . . . Sneak Attacks . | . . . . Combat Hostiles . | . . . . Follow-up Attacks . | . . . . Damage Inflicted 594 | 270 288 . 36 Guns 594 | 270 288 . 36 Cannons . | . . . . Explosions . | . . . . Melee . | . . . . Ramming . | . . . . Kinetic 36 | . . . 36 Thermal 558 | 270 288 . . Explosive . | . . . . Electromagnetic . | . . . . Impact . | . . . . Slashing . | . . . . Piercing . | . . . . Highest Corruption 2 | . . . 2 Average Corruption 1 | . . . 1 Corruption Purged . | . . . . Corruption Blocked . | . . . . Overload Shots . | . . . . Overflow Damage . | . . . . Projectiles . | . . . . Explosions . | . . . . Melee . | . . . . Knockbacks . | . . . . Impact . | . . . . Kinetic . | . . . . Secondary . | . . . . Self-Inflicted Damage . | . . . . Shots . | . . . . Rammed . | . . . . Targets Rammed . | . . . . Kicked . | . . . . Crushed . | . . . . Highest Temperature 346 | 132 346 . 64 Average Temperature 83 | 51 110 . 25 Received Heat Transfer 559 | . 168 . 391 Effects 1 | . 1 . . Matter Decay 1 | . 1 . . Siege Activations . | . . . . Martial Activations . | . . . . Shielding Activations . | . . . . Robots Disrupted . | . . . . Combat Hostiles . | . . . . Robots Corrupted . | . . . . Combat Hostiles . | . . . . Parts Fried . | . . . . Impact Corruptions . | . . . . Robots Melted . | . . . . Combat Hostiles . | . . . . Parts Melted 3 | 1 2 . . Heat Transferred 1538 | 793 745 . . Parts Sabotaged . | . . . . Parts Stolen . | . . . . Parts Stripped . | . . . . Power Chain Reactions . | . . . . Alert | -11 -10 -10 -7 ------- Run | Yrd Mat Sub Scr Maximum Alert Level . | . . . . Low Security (%) 100 | 100 100 . . Level 1 . | . . . . Level 2 . | . . . . Level 3 . | . . . . Level 4 . | . . . . Level 5 . | . . . . High Security . | . . . . Max Security . | . . . . Peak Influence 50 | 10 50 . . Initial . | . . . . Average 4 | 1 5 . . Influence Increases 148 | 30 118 . . Destroy 0b10 Robot/C 60 | . 60 . . Destroy 0b10 Robot/NC 45 | 30 15 . . Destroy Leader 22 | . 22 . . Successful Hack 4 | . 4 . . Disable Machine 15 | . 15 . . Destroy Structure 2 | . 2 . . Influence Decreases 148 | 30 118 . . Time Decay 148 | 30 118 . . Squads Dispatched 4 | . 4 . . Investigation 4 | . 4 . . Extermination . | . . . . Reinforcement . | . . . . Assault . | . . . . Garrison . | . . . . Intercept . | . . . . Searches Triggered . | . . . . Construction Impeded . | . . . . Haulers Reinforced . | . . . . Active Scanning Responses . | . . . . Cargo Convoy Interrupts . | . . . . Stealth | -11 -10 -10 -7 --------- Run | Yrd Mat Sub Scr Distress Signals 2 | . 2 . . Communications Jammed . | . . . . Distress Signals . | . . . . Times Spotted 28 | . 11 . 17 Peak Tracking Total 9 | . 3 . 9 Tactical Retreats . | . . . . Traps | -11 -10 -10 -7 ------- Run | Yrd Mat Sub Scr Traps Triggered 2 | . 2 . . Indirectly . | . . . . Trap Hack Attempts . | . . . . Triggered . | . . . . Disarmed . | . . . . Reprogrammed . | . . . . Reused . | . . . . Traps Extracted . | . . . . Installed . | . . . . Triggered . | . . . . Machines | -11 -10 -10 -7 ---------- Run | Yrd Mat Sub Scr Machines Disabled 1 | . 1 . . Max in Single Turn 1 | . 1 . . Machines Repaired . | . . . . Machines Dismantled . | . . . . Machines Sabotaged . | . . . . Overloaded Fab Kills . | . . . . Hacking | -11 -10 -10 -7 --------- Run | Yrd Mat Sub Scr Machines Accessed 8 | . 6 . 2 Terminals 6 | . 6 . . Fabricators . | . . . . Repair Stations . | . . . . Recycling Units . | . . . . Scanalyzers . | . . . . Garrison Access . | . . . . Total Hacks 36 | . 15 . 21 Successful 25 | . 4 . 21 Failed 11 | . 11 . . Catastrophic 2 | . 2 . . Database Lockouts . | . . . . Manual 15 | . 15 . . Terminals 15 | . 15 . . Fabricators . | . . . . Repair Stations . | . . . . Recycling Units . | . . . . Scanalyzers . | . . . . Garrison Access . | . . . . Terminal Hacks 22 | . 1 . 21 Record 15 | . . . 15 Robot Analysis 6 | . . . 6 Branch Access Points 1 | . 1 . . Fabricator Hacks . | . . . . Repair Station Hacks . | . . . . Recycling Unit Hacks . | . . . . Scanalyzer . | . . . . Garrison Access Hacks . | . . . . Unauthorized Hacks 3 | . 3 . . Terminals 3 | . 3 . . Botnet 3 | . 3 . . Fabricators . | . . . . Repair Stations . | . . . . Recycling Units . | . . . . Scanalyzers . | . . . . Garrison Access . | . . . . Data Cores Recovered 1 | . 1 . . Used . | . . . . Hacking Detections 6 | . 6 . . Full Trace Events 2 | . 2 . . Feedback Events . | . . . . Feedback Blocked . | . . . . Robot Schematics Acquired . | . . . . Robots Built . | . . . . Authchips . | . . . . Time . | . . . . Total Robot Build Rating . | . . . . Part Schematics Acquired . | . . . . Parts Built . | . . . . Authchips . | . . . . Time . | . . . . Total Part Build Rating . | . . . . Parts Repaired . | . . . . Time . | . . . . Parts Recycled . | . . . . Recycled Matter . | . . . . Retrieved Matter . | . . . . Retrieved Components . | . . . . Parts Scanalyzed . | . . . . Part Schematics Acquired . | . . . . Parts Damaged . | . . . . Bothacking | -11 -10 -10 -7 ------------ Run | Yrd Mat Sub Scr Used RIF Installer . | . . . . Robots Hacked . | . . . . Non-combat . | . . . . Combat . | . . . . Robot Hacks Applied . | . . . . Relay Couplers Released . | . . . . Fabnet Peak Effective % . | . . . . Robots Rewired . | . . . . Allies Hacked . | . . . . Hacks Repelled . | . . . . Allies | -11 -10 -10 -7 -------- Run | Yrd Mat Sub Scr Total Allies . | . . . . Largest Group . | . . . . Highest-Rated Group . | . . . . Highest-Rated Ally . | . . . . Total Orders . | . . . . Ally Attacks . | . . . . Total Damage . | . . . . Kills . | . . . . Allies Corrupted . | . . . . Allies Melted 2 | . . . 2 Intel | -11 -10 -10 -7 ------- Run | Yrd Mat Sub Scr Active Infowar (turns) 3498 | 4 526 244 2724 Sensors 3285 | . 317 244 2724 Seismic 213 | 4 209 . . Robot Analysis Total 6 | . . . 6 Derelict Logs Recovered . | . . . . Drone Launches . | . . . . Drone Recoveries . | . . . . Exploration | -11 -10 -10 -7 ------------- Run | Yrd Mat Sub Scr Turns Passed 4213 | 242 978 244 2749 Spaces Moved 2504 | 119 548 131 1706 Core 13 | 13 . . . Treads 2434 | 87 548 131 1668 Legs 57 | 19 . . 38 Wheels . | . . . . Hover . | . . . . Flight . | . . . . Fastest Speed 50 | 50 160 160 115 Average Speed 158 | 141 160 160 159 Slowest Speed 160 | 160 160 160 160 Overloaded Moves . | . . . . Propulsion Burnouts . | . . . . Robots Hopped 2 | . 2 . . Potential Cave-ins . | . . . . Cave-ins Triggered . | . . . . Exploration Rate (%) 44 | 6 79 15 78 Regions Visited 3 Branch Regions 2 Pre-discovered Areas . | . . . . Known Exits Taken . | . . . . Unknown Exits Taken 3 | 1 1 1 . Scrap Searched 3 | . . . 3 Spaces Dug 1 | . 1 . . Terrain Destroyed 1 | . 1 . . Melee . | . . . . Projectile 1 | . 1 . . AOE . | . . . . Terrain Rammed . | . . . . Walls Destroyed . | . . . . Machines Disabled . | . . . . Actions | -11 -10 -10 -7 --------- Run | Yrd Mat Sub Scr Total 2658 | 155 593 166 1744 Wait 47 | . 13 33 1 Move 2497 | 118 543 130 1706 Hop 2 | . 2 . . Pick Up 31 | 10 3 3 15 Fast Attach . | . . . . Attach 12 | 6 3 . 3 Detach 1 | . 1 . . Swap 8 | 3 3 . 2 Drop 16 | . . . 16 Fire 44 | 18 25 . 1 Melee . | . . . . Ram . | . . . . Kick . | . . . . Crush . | . . . . Escape Stasis . | . . . . Rewire . | . . . . Trap . | . . . . Miscellaneous . | . . . . Route ------- -11/Scrapyard -10/Materials (discovered 5 exits: [*Mat x3] / *Min / [*Sub]) -10/Subcaves (discovered 2 exits: [*Mat] / *Scr) -7/Scraptown (discovered 2 exits: [*Fac x2]) History --------- Turn | Location | Event 6 | -11/Scrapyard | Discovered new exit (range 15) 243 | -11/Scrapyard | Entered Materials 244 | -10/Materials | Met a group of wandering Federalists 305 | -10/Materials | Discovered new exit (range 16) 317 | -10/Materials | Build established: Mutant 476 | -10/Materials | Discovered new exit (range 16) 606 | -10/Materials | Discovered new exit (range 4) 935 | -10/Materials | Discovered new exit (range 16) 1122 | -10/Materials | Identified exit to Mines 1191 | -10/Materials | Discovered new exit (range 8) 1221 | -10/Materials | Entered Subcaves 1222 | -10/Subcaves | Continued accompanying wandering Federalists (3) 1266 | -10/Subcaves | Discovered new exit (range 15) 1448 | -10/Subcaves | Wandering Federalist uncovered a shortcut to Scraptown 1465 | -10/Subcaves | Entered Scraptown 2143 | -7/Scraptown | Discovered new exit (range 11) 2193 | -7/Scraptown | Heard Great Nut preacher, LISTEN AND RECITE! 2359 | -7/Scraptown | Visited UFD Registry 2395 | -7/Scraptown | Registered with UFD as "Hammerhacker" 2572 | -7/Scraptown | Visited Chapter 10 2630 | -7/Scraptown | Visited Research Penetration Think Tank 2673 | -7/Scraptown | Visited Analyses Database 2742 | -7/Scraptown | Visited Derelict Rescue Squad 2759 | -7/Scraptown | Found DRS Beacon 2791 | -7/Scraptown | Found DRS Beacon 2923 | -7/Scraptown | Discovered new exit (range 3) 2990 | -7/Scraptown | Visited Scrap Suit Storage 3021 | -7/Scraptown | Found Scrap Suit 3852 | -7/Scraptown | Visited CPS Storage 4031 | -7/Scraptown | Met Optimus 4031 | -7/Scraptown | Accepted into 0bPrime 4141 | -7/Scraptown | Civil war broke out across Scraptown 4207 | -7/Scraptown | Core integrity fell below 50% 4211 | -7/Scraptown | Core integrity fell below 20% 4214 | -7/Scraptown | Self-destructed Last Messages --------------- malfunctioning. 04190_ Slug penetrates Triborg. 04191_ Bolt penetrates Wall. 04194_ Penetrated by Bolt. 04196_ Critical hit (Burn: +50). 04197_ Penetrated by Bolt. 04200_ 4R-X6F(x) destroyed. 04200_ Flak Gun destroyed. 04204_ F6-4LB(j) heat damages Ovr. Titanium Leg. 04208_ Bolt penetrates Wall. 04208_ Lgt. Nuclear Core destroyed. 04209_ Slug penetrates CW-OO7(g). [Achievement: Please Form A Line] 04210_ Bolt penetrates Wall. 04211_ F6-4LB(j) heat short circuits Scrap Suit. 04212_ CW-OO7(g) suffers critical hit (Burn). 04213_ N9-HU5(h): "Stop this nonsense!" 04213_ Bolt penetrates Wall. 04213_ Coil Gun destroyed. 04213_ Imp. Titanium Leg destroyed. Map ----- +----------------------------------------------------+ | #???????????? | | #???????????? | | ########### ##########"" """"#####???????????? | | #?????????## ##????????#" "#???????????????? | | "?????#????# #########?#" ""#???????????????? | | " ????? ??# """"""""#?#" """#???????????????? | | "??### ### " ""#?#" """#???????????????? | | " ?#"" """ "#?#"""""""#???????????????? | | """"?#" """ " ""#?#######?????????????????? | | ##???#" " """"""""#?????????????????????????? | | ?????#" ##"""####?????????????????????????? | | ?????#" "" " ######?????????????????##?????????? | | ?????#" " #"""?????????????????"" #?????????? | | ?????#"""""" #" ??????????????# | | #?????????? | | ?????####### #" #?????????????#"""" #?????????# | | ???????????# #" #?????????????# ||| #?????????# | | ############ #" "#?????????????#"""" #?????????? | | #" "#?????????????# || #?????????? | | #" #####?????????#"""" #?????????? | | ############ #" ??????????# ||| #?????????? | | ??????????# ! # j ?????????????? ###???????? | | ?????????###!*%###h################## ##"#???????# | | ?????????# j/ #???????# | | ?????????# j g #???????# | | ?????????# j #???????# | | ?????????# *! @ j #???????# | | ?????????# [%! g #???????# | | ?????????# ################# #???##### | | ?????????# #???????????????#= [!#???#"""" | | ?????????# #???????????????#%/ [%=#???#"""" | | ?????????# #???????????????# !! #???#"""" | | ???????? ???????????????# #???#"""" | | ???????### #???????????????# #???#"""" | | ?????????# ????????????????# ###?#"""" | | ?????????# ????????????????# ""#"#"""" | | ?????????# ????????????????# """"#"""" | | ?????????# ????????????????# [ ""####### | | ?????????# ????????????????# !% ###?????# | | ?????????? ????????????????# ! ######### | | ???????????? ????????????????# %= ! | | ???????????????????????????????# ! !%= | | ???????????????#???????????????# ! | | ?????????????? #???????????????# | | ????????????? #######????####"" = | | ????????????? ??? *%[ | | ???????????? ?? ! =! | | ??????????? %! | | ?????????? ? ! = | | ???####### & % | | ??## #""""# | +----------------------------------------------------+ Best States ------------- Heat Dissipation 25 Energy Generation 14 Energy Capacity 250 Matter Stores 300 Matter Capacity 300 Sight Range 16 Robot Scan Range 14 Terrain Scan Density 10 Evasion (%) 55 Recoil Reduction 2 Item Schematics ----------------- None Robot Schematics ------------------ None Fabricated ------------ Nothing Repaired ---------- Nothing Alien Tech Used ----------------- None Achievements -------------- Please Form A Line Challenges ------------ None Game ------ Seed TrapTerrabombDriveblaster Manual? 0 Play Time 00:17:25 Cumulative 11.3 hours Start 2025.10.08 @ 07:44:38 End 2025.10.08 @ 08:06:01 Sessions 1 Manual Loads 0 Difficulty Rogue Special Mode None Game No. 36 Rogue 36 Adventurer 0 Explorer 0 Win Type - Total 0 Types 0/0/0/0/0/0/0/0/0/0 Lore% 15 Gallery% 17 Achievement% 19 Wizard Run 0 Options --------- Layout 1 ASCII 0 Keyboard 0 Movement Numpad Keybinds 0 Fullscreen 1 Font 24/Smallcaps Map View 50x35 Zoom Use 0% Tactical HUD 1 Map Filters NONE Filters NONE Steam 1 RUN: 9dc07038-31d4-4153-8777-14506b36ceee